fUST/lending_fUST_20250314
["ID","MTS","AMOUNT","RATE_DAILY","PERIOD"]
[356125946,1741931450309,-174.099395,0.000123,2]
[356125947,1741931450319,-174.099395,0.000123,2]
[356125948,1741931450328,-174.099395,0.000123,2]
[356125949,1741931450340,-174.099395,0.000123,2]
[356125950,1741931450350,-174.099395,0.000123,2]
[356125951,1741931450360,-174.099387,0.000123,2]
[356125952,1741931450370,-233.69455,0.000123,2]
[356125953,1741931450380,-233.69455,0.000123,2]
[356125954,1741931450390,-233.69455,0.000123,2]
[356125955,1741931450401,-233.69455,0.000123,2]
[356125956,1741931450411,-151.0,0.000123,2]
[356125957,1741931450421,-233.69455,0.000123,2]
[356125958,1741931450432,-295.63116,0.000123,2]
[356125959,1741931450441,-233.69455,0.000123,2]
[356125960,1741931450451,-646.021755,0.000123,2]
[356125961,1741931450478,-646.021755,0.000123,2]
[356125962,1741931450494,-646.021755,0.000123,2]
[356125963,1741931450510,-646.021755,0.000123,2]
[356125964,1741931450526,-646.021755,0.000123,2]
[356125965,1741931450540,-646.02175219,0.000123,2]
[356125966,1741931450554,-151.0,0.000123,2]
[356125967,1741931450568,-151.0,0.000123,2]
[356125968,1741931450584,-151.0,0.000123,2]
[356125969,1741931450605,-151.0,0.000123,2]
[356125970,1741931450619,-11873.91210907,0.000123,2]
[356125971,1741931450636,-11873.91210879,0.000123,2]
[356125972,1741931450652,-11873.91210879,0.000123,2]
[356125973,1741931450666,-11873.91210879,0.000123,2]
[356125974,1741931450680,-11873.91210879,0.000123,2]
[356125975,1741931450695,-11873.91210879,0.000123,2]
[356125976,1741931450710,-1000.0,0.00012329,2]
[356125977,1741931450726,-151.0,0.00012372,2]
[356125978,1741931450741,-151.0,0.00012372,2]
[356125979,1741931450754,-176.108384,0.00012372,2]
[356125980,1741931450768,-218.375044,0.00012372,2]
[356125981,1741931450785,-218.375038,0.00012372,2]
[356125982,1741931450799,-427.095112,0.00012372,2]
[356125983,1741931450814,-427.095112,0.00012372,2]
[356125984,1741931450828,-151.0,0.00012372,2]
[356125985,1741931450842,-151.0,0.00012383,2]
[356125986,1741931450855,-151.0,0.00012383,2]
[356125987,1741931450868,-913.0,0.00012411,2]
[356125988,1741931450879,-160.0,0.00012413,5]
[356125989,1741931450890,-21118.44199249,0.000125,4]
[356125990,1741931450903,-151.0,0.000125,2]
[356125991,1741931450915,-152.897344,0.000125,2]
[356125992,1741931450928,-427.095112,0.000125,2]
[356125993,1741931450941,-427.095112,0.000125,2]
[356125994,1741931450954,-151.0,0.000125,2]
[356125995,1741931450967,-233.69455,0.000125,2]
[356125996,1741931450980,-233.694544,0.000125,2]
[356125997,1741931450994,-160.0,0.00012535,6]
[356125998,1741931451009,-913.0,0.00012548,2]
[356125999,1741931451023,-11455.3227805,0.00012555,2]
[356126028,1741932635580,-203.27604392,0.00010803,2]
[356126030,1741932635591,-500.0,0.00010803,2]
[356126033,1741932635602,-500.0,0.00010803,2]
[356126035,1741932635612,-500.0,0.00010803,2]
[356126037,1741932635622,-500.0,0.00010803,2]
[356126039,1741932635632,-500.0,0.00010803,2]
[356126041,1741932635642,-500.0,0.00010803,2]
[356126043,1741932635653,-500.0,0.00010803,2]
[356126045,1741932635663,-500.0,0.00010803,2]
[356126047,1741932635673,-500.0,0.00010803,2]
[356126049,1741932635683,-500.0,0.00010803,2]
[356126051,1741932635693,-500.0,0.00010803,2]
[356126053,1741932635704,-205.72684118,0.00010803,2]
[356126056,1741932635714,-500.0,0.00010803,2]
[356126058,1741932635724,-500.0,0.00010803,2]
[356126060,1741932635734,-500.0,0.00010803,2]
[356126062,1741932635745,-500.0,0.00010803,2]
[356126064,1741932635755,-500.0,0.00010807,2]
[356126066,1741932635765,-500.0,0.00010807,2]
[356126068,1741932635776,-500.0,0.00010807,2]
[356126070,1741932635787,-500.0,0.00010807,2]
[356126073,1741932635797,-500.0,0.00010807,2]
[356126075,1741932635807,-595.79288985,0.00010807,2]
[356126077,1741932635818,-500.0,0.00010807,2]
[356126079,1741932635828,-501.33877469,0.00010807,2]
[356126081,1741932635838,-24900.0,0.00010808,2]
[356126083,1741932635848,-352.4956264,0.00010863,2]
[356126085,1741932635858,-5560.28,0.00010959,2]
[356126087,1741932635868,-3903.22993059,0.00010959,2]
[356126311,1741932637818,-730.34006941,0.00010959,2]
[356126314,1741932637829,-621.41867467,0.00010959,2]
[356127203,1741932645987,-3239.89132533,0.00010959,2]
[356127205,1741932645997,-3217.76,0.00010959,2]
[356127207,1741932646007,-2681.46,0.00010959,2]
[356127209,1741932646018,-2234.55,0.00010959,2]
[356127211,1741932646031,-150.0,0.00011803,2]
[356127213,1741932646042,-150.0,0.00011803,2]
[356127215,1741932646052,-540.0,0.00011803,2]
[356127218,1741932646063,-1914.0,0.00011803,2]
[356127219,1741932646073,-2270.0,0.00011803,2]
[356127221,1741932646084,-399.0,0.00011803,2]
[356127223,1741932646094,-399.0,0.00011803,2]
[356127225,1741932646105,-500.0,0.00012055,2]
[356127227,1741932646116,-834.90316669,0.00012078,2]
[356127229,1741932646126,-160.0,0.00012151,3]
[356127231,1741932646136,-9149.33708277,0.000122,2]
[356127233,1741932646146,-9149.33708265,0.000122,2]
[356127235,1741932646156,-160.0,0.00012315,4]
[356127237,1741932646166,-302.0,0.00012329,2]
[356127240,1741932646178,-153.56263782,0.0001238,2]
[356127242,1741932646188,-9149.33708265,0.00012383,2]
[356127244,1741932646198,-160.0,0.0001248,5]
[356127246,1741932646208,-151.0,0.00012554,2]
[356127248,1741932646218,-9149.33708265,0.00012624,2]
[356127250,1741932646228,-160.0,0.00012644,6]
[356127252,1741932646237,-151.0,0.000128,2]
[356127254,1741932646248,-160.0,0.00012808,7]
[356127256,1741932646257,-150.0,0.00012821,2]
[356127258,1741932646267,-291.73591237,0.00012821,2]
[356127260,1741932646277,-500.0,0.00012845,2]
[356127262,1741932646287,-9149.33708265,0.00012866,2]
[356127264,1741932646297,-19063.87292324,0.0001287,2]
[356127265,1741932646307,-162.8797639,0.00012877,2]
[356127267,1741932646316,-222000.0,0.000129,2]
[356127269,1741932646326,-151.0,0.000129,2]
[356127271,1741932646336,-151.0,0.000129,2]
[356127273,1741932646346,-151.0,0.000129,2]
[356127275,1741932646355,-151.0,0.000129,2]
[356127278,1741932646365,-151.0,0.000129,2]
[356127280,1741932646375,-151.0,0.000129,2]
[356127282,1741932646385,-160.0,0.00012973,8]
[356127283,1741932646395,-9494.6907286,0.00013,2]
[356127285,1741932646404,-195.14490949,0.00013,2]
[356127287,1741932646415,-10000.0,0.00013,2]
[356127289,1741932646425,-120396.68862101,0.00013,2]
[356127445,1741933217728,-206.89660538,0.0001074,2]
[356127446,1741933227748,-178.32599598,0.0001074,2]
[356127447,1741933235794,-175.65694601,0.0001074,2]
[356127448,1741933235821,-77.73650586,0.00010958,2]
[356127449,1741933268289,-168.26,0.00010724,2]
[356127450,1741933355388,2000.0,0.0001001,2]
[356127451,1741933370839,2000.005,0.00014001,30]
[356127452,1741933440968,25846.0,0.0001,2]
[356127453,1741933592124,-8.885947,0.00010724,2]
[356127454,1741933592147,-210.33537516,0.00010958,2]
[356127455,1741933602110,1000.0,0.00014,30]
[356127456,1741933662404,-164.340267,0.00010669,2]
[356127458,1741933713485,-150.96274844,0.00010668,2]
[356127465,1741933805194,-161.8982895,0.00010668,2]
[356127489,1741933832195,-138.1017105,0.00010668,2]
[356127490,1741933832207,-349.03725156,0.00010668,2]
[356127491,1741933832216,-517.41164055,0.00010668,2]
[356127492,1741933832226,-9835.659733,0.00010669,2]
[356127493,1741933832235,-1124.26,0.00010959,2]
[356127494,1741933832245,-500.0,0.00011499,2]
[356127495,1741933832255,-500.0,0.00011499,2]
[356127496,1741933832265,-500.0,0.00011499,2]
[356127497,1741933832275,-500.0,0.00011499,2]
[356127498,1741933832285,-347.12275981,0.00011499,2]
[356127499,1741933832294,-461.86571887,0.00011499,2]
[356127500,1741933832304,-500.0,0.00011499,2]
[356127501,1741933832313,-5495.94565563,0.000115,2]
[356127502,1741933832414,-19404.05434437,0.000115,2]
[356127503,1741933832424,-247.705,0.00011678,2]
[356127504,1741933832434,-1914.0,0.00011678,2]
[356127505,1741933832444,-540.0,0.00011678,2]
[356127506,1741933832456,-2270.0,0.00011678,2]
[356127507,1741933832466,-399.0,0.00011678,2]
[356127508,1741933832476,-399.0,0.00011678,2]
[356127509,1741933832485,-420.0,0.00011727,2]
[356127510,1741933832495,-1000.0,0.00012,12]
[356127511,1741933832505,-500.0,0.00012055,2]
[356127512,1741933832515,-419.10084215,0.00012057,2]
[356127513,1741933832526,-7624.44756902,0.000122,2]
[356127514,1741933832536,-7624.44756887,0.000122,2]
[356127515,1741933832552,-7624.44756887,0.00012383,2]
[356127516,1741933832562,-808.0268093,0.0001261,2]
[356127517,1741933832572,-3345.61107908,0.00012624,2]
[356127522,1741933837944,-500.0,0.00012624,2]
[356127523,1741933837955,-813.62704925,0.00012624,2]
[356127524,1741933837967,-407.48281878,0.00012624,2]
[356127525,1741933837979,-416.351307,0.00012624,2]
[356127526,1741933838042,-2141.37531476,0.00012624,2]
[356127527,1741933838052,-500.0,0.00012692,2]
[356127528,1741933838063,-834.90316669,0.00012692,2]
[356127529,1741933838072,-904.2981264,0.000127,2]
[356127530,1741933838083,-904.2981264,0.0001275,2]
[356127531,1741933838093,-1000.0,0.00012792,2]
[356127532,1741933838102,-809.17674115,0.000128,2]
[356127553,1741933846142,-1755.35,0.00010959,2]
[356127554,1741933846152,-606.0201069,0.0001261,2]
[356127555,1741933846161,-51070.89068469,0.000128,2]
[356127556,1741934106614,189.4,6.337e-05,2]
[356127557,1741934153375,555.0,0.00014001,30]
[356127558,1741934182197,556.0,0.000145,60]
[356127559,1741934212062,666.0,0.0001525,120]
[356127577,1741934797415,-216.39716498,0.00010858,2]
[356127578,1741934797438,-0.56172796,0.00010959,2]
[356127579,1741934831108,-300.0,0.00010958,2]
[356127580,1741934831133,-1462.22827204,0.00010959,2]
[356127581,1741934831157,-1218.99,0.00010959,2]
[356127582,1741934831179,-1015.82,0.00010959,2]
[356127583,1741934831204,-846.52,0.00010959,2]
[356127584,1741934831227,-705.43,0.00010959,2]
[356127585,1741934831250,-587.86,0.00010959,2]
[356127586,1741934831271,-489.89,0.00010959,2]
[356127587,1741934831294,-538.98008227,0.00011232,2]
[356127588,1741934831316,-500.0,0.00011233,2]
[356127589,1741934831340,-442.98593187,0.00011233,2]
[356127590,1741934831363,-500.0,0.00011233,2]
[356127591,1741934831387,-500.0,0.00011233,2]
[356127592,1741934831409,-373.30600321,0.00011233,2]
[356127593,1741934831433,-24900.0,0.00011234,2]
[356127594,1741934831454,-150.0,0.00011588,2]
[356127595,1741934831476,-399.0,0.00011588,2]
[356127596,1741934831498,-1914.0,0.00011588,2]
[356127597,1741934831520,-540.0,0.00011588,2]
[356127598,1741934831542,-159.39526411,0.00012,2]
[356127599,1741934831564,-1000.0,0.00012,12]
[356127600,1741934831587,-420.0,0.00012042,2]
[356127601,1741934831608,-500.0,0.00012055,2]
[356127602,1741934831631,-6607.8545599,0.000122,2]
[356127603,1741934831653,-6607.85455968,0.000122,2]
[356127604,1741934831675,-6607.85455968,0.00012383,2]
[356127605,1741934831697,-542.57887584,0.000126,2]
[356127606,1741934831719,-454.5150802,0.0001261,2]
[356127607,1741934831741,-6607.85455968,0.00012624,2]
[356127608,1741934831763,-542.57887584,0.00012675,2]
[356127609,1741934831786,-4850.79366699,0.000127,2]
[356127610,1741934831808,-6291.58032569,0.000127,2]
[356127611,1741934831831,-155288.51344508,0.000127,2]
[356127650,1741935038213,-408.24,0.00010959,2]
[356127651,1741935038223,-340.2,0.00010959,2]
[356127652,1741935038232,-283.5,0.00010959,2]
[356127653,1741935038242,-236.25,0.00010959,2]
[356127654,1741935038251,-2270.0,0.00011588,2]
[356127655,1741935038260,-151.381,0.00011588,2]
[356127656,1741935038269,-834.90316669,0.00012435,2]
[356127657,1741935038278,-340.8863102,0.0001261,2]
[356127658,1741935038288,-300.0,0.00012698,2]
[356127659,1741935038297,-500.0,0.00012699,2]
[356127660,1741935038306,-160.0901523,0.00012699,2]
[356127661,1741935038316,-461.31420225,0.00012699,2]
[356127662,1741935038325,-500.0,0.00012699,2]
[356127663,1741935038334,-66711.48655492,0.000127,2]
[356127664,1741935038344,-325.54732552,0.000127,2]
[356127665,1741935038353,-325.5473255,0.0001275,2]
[356127666,1741935038362,-48598.82327432,0.000128,2]
[356127702,1741935046703,-26108.94252227,0.000128,2]
[356127703,1741935046714,-500.0,0.000128,2]
[356127704,1741935046724,-500.0,0.000128,2]
[356127705,1741935046735,-325.5473255,0.000128,2]
[356127706,1741935046745,-514.39282526,0.00012827,2]
[356127707,1741935046755,-325.5473255,0.0001285,2]
[356127708,1741935046766,-325.5473255,0.000129,2]
[356127709,1741935046775,-3562.77472639,0.000129,2]
[356127710,1741935046786,-781.69807006,0.00012993,2]
[356127711,1741935046796,-151.0,0.00012999,2]
[356127712,1741935046806,-2425.39683349,0.00013,2]
[356127713,1741935046816,-138459.43112899,0.00013,2]
[356127714,1741935046826,-23743.69464496,0.00013,2]
[356127717,1741935853446,-185.5359455,0.00010959,2]
[356127718,1741935875959,-11.3340545,0.00010959,2]
[356127719,1741935875985,-138.6659455,0.00010959,2]
[356127720,1741935936138,-99.0240545,0.00010959,2]
[356127721,1741935936158,-198.07,0.00010959,2]
[356127722,1741935936178,-165.06,0.00010959,2]
[356127723,1741935936198,-825.33,0.00010959,2]
[356127724,1741935936218,-300.0,0.00011495,2]
[356127725,1741935936241,-24900.0,0.00011496,2]
[356127726,1741935936261,-235.172,0.00011588,2]
[356127727,1741935936280,-250.0,0.00011588,2]
[356127728,1741935936298,-254.594,0.00011608,2]
[356127729,1741935936317,-280.946,0.00011608,2]
[356127730,1741935936338,-540.0,0.00011608,2]
[356127731,1741935936358,-1914.0,0.00011608,2]
[356127732,1741935936378,-2270.0,0.00011608,2]
[356127733,1741935936398,-399.0,0.00011608,2]
[356127734,1741935936418,-160.0,0.00011949,3]
[356127735,1741935936438,-339.5152604,0.00011975,2]
[356127736,1741935936458,-5726.80728523,0.000121,2]
[356127737,1741935936477,-500.0,0.00012138,2]
[356127738,1741935936499,-462.06310661,0.00012138,2]
[356127739,1741935936519,-172.91994158,0.00012138,2]
[356127740,1741935936540,-5726.80728505,0.00012141,2]
[356127741,1741935936561,-160.0,0.00012312,4]
[356127742,1741935936583,-5726.80728505,0.00012383,2]
[356127743,1741935936602,-255.6647326,0.0001261,2]
[356127744,1741935936622,-5726.80728505,0.00012624,2]
[356127745,1741935936642,-420.0,0.00012625,2]
[356127746,1741935936662,-160.0,0.00012674,5]
[356127747,1741935936683,-82887.8773244,0.000127,2]
[356127748,1741935954104,-834.90316669,0.00012642,2]
[356127749,1741935954127,-139112.1226756,0.000127,2]
[356127750,1741935954147,-5726.80728505,0.00012866,2]
[356127751,1741935954167,-247.65221803,0.00012992,2]
[356127752,1741935954186,-9124.45331663,0.00012999,7]
[356127753,1741936025094,-191.7485495,0.0001261,2]
[356127754,1741936025117,-3117.4278856,0.000129,2]
[356127755,1741936025142,-323.44417463,0.00012998,2]
[356127756,1741936025164,-471.0439591,0.00012998,2]
[356127757,1741936025187,-300.0,0.00012998,2]
[356127758,1741936025208,-88562.11340662,0.00012999,7]
[356127759,1741936025229,-237.3341865,0.00012999,2]
[356127760,1741936025253,-1212.69841675,0.00013,2]
[356127761,1741936025273,-30679.30535504,0.00013,2]
[356127762,1741936025293,-383.26320026,0.00013,2]
[356127763,1741936033131,-4772.33940445,0.000129,2]
[356127764,1741936033151,-16604.81113655,0.00013,2]
[356127777,1741936238950,-329.73077137,0.00012599,2]
[356127778,1741936238970,-226.41092224,0.00012599,2]
[356127779,1741936238981,-15116.79892422,0.000126,2]
[356127782,1741936240920,-13942.042126,0.000126,2]
[356127783,1741936240933,-306.31217669,0.000126,2]
[356127803,1741936244383,-399.0,0.00011812,2]
[356127805,1741936244393,-156251.7300413,0.000126,2]
[356127807,1741936244404,-191.7485495,0.0001261,2]
[356127809,1741936244415,-331.87376949,0.00012683,2]
[356128045,1741936246626,-503.0293972,0.00012683,2]
[356128047,1741936246635,-1872.2095518,0.000129,2]
[356134677,1741936987746,200.0,0.00014001,30]
[356134682,1741937209123,-218.99507924,0.00011494,2]
[356134683,1741937353243,-48692.49416704,0.00013,4]
[356134684,1741937353269,-1000.0,0.00013,13]
[356134685,1741937353294,-160.0,0.00013036,6]
[356134686,1741937353327,-147.50583296,0.00013399,7]
[356134692,1741937376526,-12.49416704,0.00013399,7]
[356134693,1741937376580,-500.0,0.00013698,4]
[356134694,1741937376605,-500.0,0.00013698,4]
[356134695,1741937376631,-593.66799444,0.00013698,4]
[356134696,1741937376668,-160.0,0.00013761,8]
[356134697,1741937376694,-175.999514,0.00013868,4]
[356134698,1741937376719,-588.0,0.000139,4]
[356134699,1741937376744,-175.999514,0.00013914,5]
[356134700,1741937376787,-1000.0,0.00014,14]
[356134701,1741937381716,-150.0,0.00014001,7]
[356134702,1741937381742,-160.0,0.00014124,9]
[356134703,1741937381768,-215.88458289,0.00014124,5]
[356134704,1741937381795,-1000.0,0.000142,3]
[356134705,1741937381842,-175.999514,0.000144,4]
[356134706,1741937381882,-175.999514,0.00014465,5]
[356134707,1741937381957,-1000.0,0.00015,15]
[356134708,1741937381989,-400.0,0.00015,4]
[356134709,1741937382027,-1000.0,0.00015,30]
[356134713,1741937404667,151.0,0.00015,3]
[356134714,1741937412132,600.0,0.00015,3]
[356134724,1741937433700,-186.03734,0.00010881,2]
[356134725,1741937433711,-500.0,0.00011494,2]
[356134726,1741937433721,-300.0,0.00011494,2]
[356134727,1741937433731,-158.48764557,0.00011494,2]
[356134728,1741937433741,-230.81153996,0.00011494,2]
[356134729,1741937433751,-500.0,0.00011495,2]
[356134730,1741937433761,-500.0,0.00011495,2]
[356134731,1741937433771,-500.0,0.00011495,2]
[356134732,1741937433781,-1002.62,0.00011495,2]
[356134733,1741937433790,-500.0,0.00011495,2]
[356134734,1741937433800,-500.0,0.00011495,2]
[356134735,1741937433810,-500.0,0.00011495,2]
[356134736,1741937433824,-509.04335043,0.00011495,2]
[356134737,1741937433834,-500.0,0.00011495,2]
[356134738,1741937433845,-518.25038066,0.00011495,2]
[356134739,1741937433855,-500.0,0.00011495,2]
[356134740,1741937433868,-500.0,0.00011495,2]
[356134741,1741937433877,-507.30043007,0.00011495,2]
[356134742,1741937433887,-500.0,0.00011495,2]
[356134743,1741937433897,-500.0,0.00011495,2]
[356134744,1741937433909,-510.91867965,0.00011495,2]
[356134745,1741937433918,-512.81670437,0.00011495,2]
[356134746,1741937433928,-500.0,0.00011495,2]
[356134747,1741937433938,-500.0,0.00011495,2]
[356134748,1741937433949,-500.0,0.00011495,2]
[356134749,1741937433959,-1083.11,0.00011495,2]
[356134750,1741937433970,-500.0,0.00011495,2]
[356134751,1741937433979,-500.0,0.00011495,2]
[356134752,1741937433989,-1703.63404081,0.00011495,2]
[356134753,1741937433999,-335.5359455,0.00011505,2]
[356134754,1741937434009,-500.0,0.00011768,2]
[356134755,1741937434019,-500.0,0.00011768,2]
[356134756,1741937434029,-500.0,0.00011769,2]
[356134757,1741937434040,-500.0,0.00011769,2]
[356134758,1741937434049,-500.0,0.00011769,2]
[356134759,1741937434059,-1002.62,0.00011769,2]
[356134760,1741937434068,-500.0,0.00011769,2]
[356134761,1741937434078,-500.0,0.00011769,2]
[356134762,1741937434088,-500.0,0.00011769,2]
[356134763,1741937434098,-500.0,0.00011769,2]
[356134764,1741937434108,-500.0,0.00011769,2]
[356134765,1741937434119,-500.0,0.00011769,2]
[356134766,1741937434129,-167.53675784,0.00011769,2]
[356134767,1741937434140,-546.87369113,0.00011769,2]
[356134768,1741937434150,-500.0,0.00011769,2]
[356134769,1741937434159,-500.0,0.00011769,2]
[356134770,1741937434170,-1083.11,0.00011769,2]
[356134771,1741937434180,-500.0,0.00011769,2]
[356134772,1741937434190,-500.0,0.00011769,2]
[356134773,1741937434200,-1914.0,0.00011812,2]
[356134774,1741937434211,-540.0,0.00011812,2]
[356134775,1741937434221,-2270.0,0.00011812,2]
[356134776,1741937434231,-399.0,0.00011812,2]
[356134777,1741937434242,-219.5433888,0.00011877,2]
[356134778,1741937434252,-13174.97,0.00012007,2]
[356134779,1741937434262,-2134.7,0.00012007,2]
[356134780,1741937434272,-500.0,0.00012007,2]
[356134781,1741937434283,-500.0,0.00012007,2]
[356134782,1741937434292,-104.75582724,0.00012008,2]
[356134783,1741937434328,-395.24417276,0.00012008,2]
[356134784,1741937434339,-500.0,0.00012008,2]
[356134785,1741937434349,-500.0,0.00012008,2]
[356134786,1741937434359,-500.0,0.00012008,2]
[356134787,1741937434369,-500.0,0.00012008,2]
[356134788,1741937434379,-500.0,0.00012008,2]
[356134789,1741937434391,-214.19164039,0.00012008,2]
[356134854,1741937485229,-248.8156253,0.00010802,2]
[356134855,1741937494301,5628.94804866,0.00015,3]
[356134858,1741937524437,-296.15972086,0.00010801,2]
[356134859,1741937526289,200.0,0.00015,3]
[356134860,1741937539689,-3.84027914,0.00010801,2]
[356134861,1741937539714,-24651.1843747,0.00010802,2]
[356134862,1741937539735,-500.0,0.00011493,2]
[356134863,1741937539754,-17515.49081249,0.00011493,2]
[356134864,1741937539776,-500.0,0.00011493,2]
[356134865,1741937539797,-500.0,0.00011493,2]
[356134866,1741937539819,-500.0,0.00011493,2]
[356134867,1741937539841,-500.0,0.00011493,2]
[356134868,1741937539862,-500.0,0.00011493,2]
[356134869,1741937539884,-500.0,0.00011493,2]
[356134870,1741937539909,-500.0,0.00011493,2]
[356134871,1741937539931,-500.0,0.00011493,2]
[356134872,1741937539954,-500.0,0.00011493,2]
[356134873,1741937539977,-500.0,0.00011493,2]
[356134874,1741937540002,-500.0,0.00011493,2]
[356134875,1741937540024,-606.78539512,0.00011493,2]
[356134876,1741937540046,-500.0,0.00011493,2]
[356134877,1741937540069,-500.0,0.00011493,2]
[356134878,1741937540090,-500.0,0.00011493,2]
[356134879,1741937540112,-500.0,0.00011493,2]
[356134880,1741937540134,-500.0,0.00011493,2]
[356134881,1741937540157,-500.0,0.00011493,2]
[356134882,1741937540179,-500.0,0.00011493,2]
[356134883,1741937540202,-500.0,0.00011493,2]
[356134884,1741937540224,-500.0,0.00011493,2]
[356134885,1741937540246,-500.0,0.00011493,2]
[356134886,1741937540268,-500.0,0.00011493,2]
[356134887,1741937540290,-500.0,0.00011493,2]
[356134888,1741937540312,-500.0,0.00011493,2]
[356134889,1741937540334,-500.0,0.00011493,2]
[356134890,1741937540355,-500.0,0.00011493,2]
[356134891,1741937540377,-500.0,0.00011493,2]
[356134892,1741937540399,-500.0,0.00011493,2]
[356134893,1741937540421,-500.0,0.00011493,2]
[356134894,1741937540443,-500.0,0.00011493,2]
[356134895,1741937540464,-500.0,0.00011493,2]
[356134896,1741937540486,-500.0,0.00011493,2]
[356134897,1741937540507,-500.0,0.00011493,2]
[356134898,1741937540529,-500.0,0.00011493,2]
[356134899,1741937540551,-500.0,0.00011493,2]
[356134900,1741937540572,-289.64282168,0.00011493,2]
[356134901,1741937540593,-500.0,0.00011493,2]
[356134902,1741937540614,-500.0,0.00011493,2]
[356134903,1741937540636,-500.0,0.00011493,2]
[356134904,1741937540658,-500.0,0.00011493,2]
[356134905,1741937540679,-500.0,0.00011493,2]
[356134906,1741937540701,-500.0,0.00011493,2]
[356134907,1741937540723,-500.0,0.00011493,2]
[356134908,1741937540744,-500.0,0.00011493,2]
[356134909,1741937540766,-500.0,0.00011493,2]
[356134910,1741937540788,-500.0,0.00011493,2]
[356134911,1741937540811,-500.0,0.00011493,2]
[356134912,1741937540835,-500.0,0.00011493,2]
[356134913,1741937540857,-500.0,0.00011493,2]
[356134914,1741937540879,-500.0,0.00011493,2]
[356134915,1741937540903,-500.0,0.00011493,2]
[356134916,1741937540926,-500.0,0.00011493,2]
[356134917,1741937540949,-500.0,0.00011493,2]
[356134918,1741937540971,-500.0,0.00011493,2]
[356134919,1741937540994,-500.0,0.00011493,2]
[356134920,1741937541017,-500.0,0.00011493,2]
[356134921,1741937541039,-500.0,0.00011493,2]
[356134922,1741937541063,-500.0,0.00011493,2]
[356134923,1741937541086,-500.0,0.00011493,2]
[356134924,1741937541106,-241.79505794,0.00011493,2]
[356134925,1741937541129,-500.0,0.00011493,2]
[356134926,1741937541152,-500.0,0.00011493,2]
[356134927,1741937541174,-300.0,0.00011493,2]
[356134928,1741937541195,-514.23487338,0.00011495,2]
[356134929,1741937541215,-519.52,0.00011495,2]
[356134930,1741937541237,-1007.21,0.00011495,2]
[356134931,1741937541257,-500.0,0.00011495,2]
[356134932,1741937541277,-500.0,0.00011495,2]
[356134933,1741937541298,-500.0,0.00011495,2]
[356134934,1741937541320,-500.0,0.00011767,2]
[356134935,1741937541341,-500.0,0.00011768,2]
[356134936,1741937541362,-500.0,0.00011768,2]
[356134937,1741937541575,-500.62408014,0.00011768,2]
[356134938,1741937541597,-817.89,0.00011768,2]
[356134939,1741937541618,-778.11,0.00011768,2]
[356134940,1741937541638,-508.06440852,0.00011768,2]
[356134941,1741937541659,-565.81,0.00011768,2]
[356134942,1741937541679,-504.0326267,0.00011768,2]
[356134943,1741937541699,-504.73933793,0.00011768,2]
[356134944,1741937541719,-500.0,0.00011768,2]
[356134945,1741937541739,-500.0,0.00011768,2]
[356134946,1741937541760,-500.0,0.00011768,2]
[356134947,1741937541781,-519.52,0.00011769,2]
[356134948,1741937541802,-1007.21,0.00011769,2]
[356134949,1741937541823,-500.0,0.00011769,2]